fUST/lending_fUST_20241006
["ID","MTS","AMOUNT","RATE_DAILY","PERIOD"]
[339912664,1728148248056,-624.99,0.00013698,2]
[339912666,1728148248065,-500.0,0.00013698,2]
[339912668,1728148248075,-500.0,0.00013698,2]
[339912670,1728148248085,-500.0,0.00013698,2]
[339912672,1728148248094,-500.0,0.00013698,2]
[339912674,1728148248104,-500.0,0.00013698,2]
[339912676,1728148248113,-500.0,0.00013698,2]
[339912678,1728148248123,-500.0,0.00013698,2]
[339912680,1728148248132,-626.82371118,0.00013698,2]
[339912682,1728148248142,-500.0,0.00013698,2]
[339912684,1728148248151,-500.0,0.00013698,2]
[339912686,1728148248161,-636.35,0.00013698,2]
[339912688,1728148248175,-500.0,0.00013698,2]
[339912690,1728148248184,-500.0,0.00013698,2]
[339912693,1728148248194,-150.0,0.00013698,2]
[339912695,1728148248204,-500.0,0.00013698,2]
[339912697,1728148248213,-500.0,0.00013698,2]
[339912699,1728148248222,-500.0,0.00013698,2]
[339912701,1728148248232,-500.0,0.00013698,2]
[339912703,1728148248243,-500.0,0.00013698,2]
[339912705,1728148248252,-500.0,0.00013698,2]
[339912707,1728148248262,-500.0,0.00013698,2]
[339912709,1728148248271,-541.09911071,0.00013698,2]
[339912711,1728148248281,-500.0,0.00013698,2]
[339912713,1728148248291,-500.0,0.00013698,2]
[339912715,1728148248300,-500.0,0.00013698,2]
[339912717,1728148248309,-500.0,0.00013698,2]
[339912719,1728148248319,-500.0,0.00013698,2]
[339912721,1728148248330,-500.0,0.00013698,2]
[339912723,1728148248339,-500.0,0.00013698,2]
[339912725,1728148248349,-500.0,0.00013698,2]
[339912727,1728148248359,-500.0,0.00013698,2]
[339912729,1728148248368,-328.4442,0.00013698,2]
[339912731,1728148248378,-500.0,0.00013698,2]
[339912733,1728148248388,-500.0,0.00013698,2]
[339912735,1728148248397,-500.0,0.00013698,2]
[339912737,1728148248407,-500.0,0.00013698,2]
[339912739,1728148248417,-735.85,0.00013698,2]
[339912741,1728148248426,-500.0,0.00013698,2]
[339912743,1728148248435,-665.79,0.00013698,2]
[339912745,1728148248447,-500.0,0.00013698,2]
[339912747,1728148248456,-500.0,0.00013698,2]
[339912749,1728148248467,-500.0,0.00013698,2]
[339912751,1728148248485,-500.0,0.00013698,2]
[339912753,1728148248495,-500.0,0.00013698,2]
[339912755,1728148248505,-500.0,0.00013698,2]
[339912757,1728148248515,-500.0,0.00013698,2]
[339912759,1728148248525,-500.0,0.00013698,2]
[339912761,1728148248536,-500.0,0.00013698,2]
[339912763,1728148248546,-500.0,0.00013698,2]
[339912765,1728148248556,-500.0,0.00013698,2]
[339912767,1728148248566,-500.0,0.00013698,2]
[339912769,1728148248576,-500.0,0.00013698,2]
[339912771,1728148248585,-500.0,0.00013698,2]
[339912773,1728148248595,-500.0,0.00013698,2]
[339912775,1728148248604,-500.0,0.00013698,2]
[339912777,1728148248613,-500.0,0.00013698,2]
[339912779,1728148248623,-970.94,0.00013698,2]
[339912781,1728148248633,-500.0,0.00013698,2]
[339912783,1728148248644,-500.0,0.00013698,2]
[339912785,1728148248654,-500.0,0.00013698,2]
[339912787,1728148248664,-500.0,0.00013698,2]
[339912789,1728148248674,-594.97,0.00013698,2]
[339912791,1728148248684,-652.73,0.00013698,2]
[339912793,1728148248695,-500.0,0.00013698,2]
[339912796,1728148248707,-507.55,0.00013698,2]
[339912798,1728148248717,-500.0,0.00013698,2]
[339912800,1728148248727,-500.0,0.00013698,2]
[339912801,1728148248737,-574.9,0.00013698,2]
[339912802,1728148248750,-500.0,0.00013698,2]
[339912803,1728148248761,-500.0,0.00013698,2]
[339912804,1728148248771,-500.0,0.00013698,2]
[339912805,1728148248780,-500.0,0.00013698,2]
[339912806,1728148248790,-500.0,0.00013698,2]
[339912807,1728148248801,-500.0,0.00013698,2]
[339912808,1728148248811,-500.0,0.00013698,2]
[339912809,1728148248820,-510.34,0.00013698,2]
[339912810,1728148248830,-500.0,0.00013698,2]
[339912811,1728148248842,-500.0,0.00013698,2]
[339912812,1728148248851,-500.0,0.00013698,2]
[339912813,1728148248861,-500.0,0.00013698,2]
[339912814,1728148248870,-500.0,0.00013698,2]
[339912815,1728148248882,-500.0,0.00013698,2]
[339912816,1728148248892,-500.0,0.00013698,2]
[339912817,1728148248903,-500.0,0.00013698,2]
[339912819,1728148248913,-500.0,0.00013698,2]
[339912821,1728148248922,-500.0,0.00013698,2]
[339912823,1728148248932,-790.34,0.00013698,2]
[339912825,1728148248942,-1220.16,0.00013698,2]
[339912827,1728148248952,-500.0,0.00013698,2]
[339912829,1728148248962,-500.0,0.00013698,2]
[339912831,1728148248973,-500.0,0.00013698,2]
[339912833,1728148248983,-500.0,0.00013698,2]
[339912835,1728148248992,-500.0,0.00013698,2]
[339912837,1728148249002,-500.0,0.00013698,2]
[339912839,1728148249011,-500.0,0.00013698,2]
[339912841,1728148249021,-500.0,0.00013698,2]
[339912843,1728148249031,-500.0,0.00013698,2]
[339912845,1728148249041,-500.0,0.00013698,2]
[339912847,1728148249051,-500.0,0.00013698,2]
[339912849,1728148249060,-500.0,0.00013698,2]
[339912851,1728148249070,-658.49,0.00013698,2]
[339912853,1728148249080,-563.04,0.00013698,2]
[339912855,1728148249092,-500.0,0.00013698,2]
[339912857,1728148249102,-535.29,0.00013698,2]
[339912859,1728148249111,-737.07,0.00013698,2]
[339912861,1728148249120,-500.0,0.00013698,2]
[339912863,1728148249129,-236.77362197,0.00013698,2]
[339912865,1728148249139,-500.0,0.00013698,2]
[339912867,1728148249150,-500.0,0.00013698,2]
[339912869,1728148249159,-500.0,0.00013698,2]
[339912871,1728148249173,-500.0,0.00013698,2]
[339912873,1728148249184,-500.0,0.00013698,2]
[339912875,1728148249194,-500.0,0.00013698,2]
[339912877,1728148249204,-615.4861159,0.00013698,2]
[339912879,1728148249216,-500.0,0.00013698,2]
[339912881,1728148249226,-500.0,0.00013698,2]
[339912883,1728148249235,-500.0,0.00013698,2]
[339912885,1728148249247,-685.25,0.00013698,2]
[339912887,1728148249257,-500.0,0.00013698,2]
[339912889,1728148249267,-590.66,0.00013698,2]
[339912891,1728148249277,-500.0,0.00013698,2]
[339912893,1728148249287,-500.0,0.00013698,2]
[339912895,1728148249297,-500.0,0.00013698,2]
[339912897,1728148249308,-500.0,0.00013698,2]
[339912899,1728148249319,-500.0,0.00013698,2]
[339912901,1728148249328,-636.68,0.00013698,2]
[339912903,1728148249338,-509.11913028,0.00013698,2]
[339912905,1728148249349,-500.0,0.00013698,2]
[339912907,1728148249357,-778.73,0.00013698,2]
[339912909,1728148249367,-398.39955621,0.00013698,2]
[339912911,1728148249377,-500.0,0.00013698,2]
[339912913,1728148249386,-500.0,0.00013698,2]
[339912915,1728148249396,-1458.48,0.00013698,2]
[339912917,1728148249405,-500.0,0.00013698,2]
[339912919,1728148249414,-500.0,0.00013698,2]
[339912921,1728148249423,-500.0,0.00013698,2]
[339912922,1728148249432,-513.84840274,0.00013698,2]
[339912924,1728148249441,-500.0,0.00013698,2]
[339912927,1728148249452,-649.41,0.00013698,2]
[339912929,1728148249462,-500.0,0.00013698,2]
[339912930,1728148249473,-500.0,0.00013698,2]
[339912932,1728148249482,-500.0,0.00013698,2]
[339912934,1728148249491,-500.0,0.00013698,2]
[339912936,1728148249499,-500.0,0.00013698,2]
[339912938,1728148249508,-511.44658829,0.00013698,2]
[339912940,1728148249518,-500.0,0.00013698,2]
[339912942,1728148249527,-645.9,0.00013698,2]
[339912944,1728148249537,-500.0,0.00013698,2]
[339912946,1728148249547,-1005.53,0.00013698,2]
[339912948,1728148249557,-509.22,0.00013698,2]
[339912950,1728148249567,-500.0,0.00013698,2]
[339912952,1728148249578,-554.31,0.00013698,2]
[339912954,1728148249587,-500.0,0.00013698,2]
[339912956,1728148249598,-500.0,0.00013698,2]
[339912958,1728148249608,-500.0,0.00013698,2]
[339912960,1728148249618,-500.0,0.00013698,2]
[339912962,1728148249627,-500.0,0.00013698,2]
[339912964,1728148249637,-500.0,0.00013698,2]
[339912966,1728148249646,-500.0,0.00013698,2]
[339912968,1728148249657,-500.0,0.00013698,2]
[339912971,1728148249668,-500.0,0.00013698,2]
[339912973,1728148249677,-500.0,0.00013698,2]
[339912975,1728148249687,-500.0,0.00013698,2]
[339912977,1728148249699,-830.42,0.00013698,2]
[339912979,1728148249710,-500.0,0.00013698,2]
[339912981,1728148249721,-500.0,0.00013698,2]
[339912983,1728148249733,-500.0,0.00013698,2]
[339912986,1728148249745,-500.0,0.00013698,2]
[339912988,1728148249755,-500.0,0.00013698,2]
[339912990,1728148249767,-500.0,0.00013698,2]
[339912992,1728148249778,-500.0,0.00013698,2]
[339912994,1728148249789,-1550.83,0.00013698,2]
[339912996,1728148249798,-812.78,0.00013698,2]
[339912998,1728148249808,-500.0,0.00013698,2]
[339913000,1728148249818,-500.0,0.00013698,2]
[339913002,1728148249827,-406.51578458,0.00013698,2]
[339913004,1728148249836,-500.0,0.00013698,2]
[339913006,1728148249845,-958.58,0.00013698,2]
[339913007,1728148249854,-500.0,0.00013698,2]
[339913009,1728148249864,-500.0,0.00013698,2]
[339913011,1728148249873,-500.0,0.00013698,2]
[339913013,1728148249883,-396.318247,0.00013698,2]
[339913016,1728148249894,-500.0,0.00013698,2]
[339913018,1728148249905,-500.0,0.00013698,2]
[339913020,1728148249916,-500.0,0.00013698,2]
[339913022,1728148249926,-368.14225474,0.00013698,2]
[339913024,1728148249936,-500.0,0.00013698,2]
[339913026,1728148249947,-563.64,0.00013698,2]
[339913028,1728148249958,-500.0,0.00013698,2]
[339913030,1728148249968,-500.0,0.00013698,2]
[339913033,1728148249978,-500.0,0.00013698,2]
[339913035,1728148249987,-500.0,0.00013698,2]
[339913037,1728148249996,-500.0,0.00013698,2]
[339913039,1728148250006,-500.0,0.00013698,2]
[339913040,1728148250014,-500.0,0.00013698,2]
[339913042,1728148250023,-500.0,0.00013698,2]
[339913044,1728148250032,-310.27529726,0.00013698,2]
[339913046,1728148250042,-151.0,0.00013698,2]
[339913048,1728148250051,-500.0,0.00013698,2]
[339913050,1728148250060,-898.38,0.00013698,2]
[339913052,1728148250069,-500.0,0.00013698,2]
[339913054,1728148250079,-231.87356,0.00013698,2]
[339913056,1728148250088,-500.0,0.00013698,2]
[339913058,1728148250097,-667.98,0.00013698,2]
[339913060,1728148250107,-500.0,0.00013698,2]
[339913062,1728148250116,-500.0,0.00013698,2]
[339913064,1728148250125,-500.0,0.00013698,2]
[339913066,1728148250135,-500.0,0.00013698,2]
[339913068,1728148250144,-500.0,0.00013698,2]
[339913071,1728148250154,-500.0,0.00013698,2]
[339913072,1728148250163,-500.0,0.00013698,2]
[339913075,1728148250175,-500.0,0.00013698,2]
[339913077,1728148250186,-500.0,0.00013698,2]
[339913079,1728148250196,-500.0,0.00013698,2]
[339913081,1728148250206,-451.86477782,0.00013698,2]
[339913083,1728148250217,-232.052505,0.00013698,2]
[339913085,1728148250227,-500.0,0.00013698,2]
[339913087,1728148250237,-596.84,0.00013698,2]
[339913089,1728148250246,-500.0,0.00013698,2]
[339913092,1728148250257,-1012.52,0.00013698,2]
[339913094,1728148250266,-500.0,0.00013698,2]
[339913096,1728148250275,-500.0,0.00013698,2]
[339913098,1728148250285,-713.62,0.00013698,2]
[339913100,1728148250294,-232.052505,0.00013698,2]
[339913102,1728148250304,-577.27,0.00013698,2]
[339913104,1728148250313,-500.0,0.00013698,2]
[339913106,1728148250324,-588.4,0.00013698,2]
[339913108,1728148250335,-500.0,0.00013698,2]
[339913110,1728148250347,-500.0,0.00013698,2]
[339913113,1728148250359,-500.0,0.00013698,2]
[339913115,1728148250369,-533.857038,0.00013698,2]
[339913117,1728148250378,-500.0,0.00013698,2]
[339913119,1728148250388,-500.0,0.00013698,2]
[339913121,1728148250399,-500.0,0.00013698,2]
[339913123,1728148250409,-500.0,0.00013698,2]
[339913125,1728148250418,-500.0,0.00013698,2]
[339913127,1728148250427,-581.74,0.00013698,2]
[339913129,1728148250437,-500.0,0.00013698,2]
[339913132,1728148250448,-533.9555166,0.00013698,2]
[339913134,1728148250457,-500.0,0.00013698,2]
[339913136,1728148250470,-634.02,0.00013698,2]
[339913138,1728148250480,-906.27,0.00013698,2]
[339913140,1728148250491,-500.0,0.00013698,2]
[339913142,1728148250501,-500.0,0.00013698,2]
[339913145,1728148250513,-500.0,0.00013698,2]
[339913147,1728148250522,-500.0,0.00013698,2]
[339913149,1728148250533,-500.0,0.00013698,2]
[339913151,1728148250544,-500.0,0.00013698,2]
[339913153,1728148250555,-500.0,0.00013698,2]
[339913155,1728148250566,-151.0,0.00013698,2]
[339913157,1728148250575,-151.0,0.00013698,2]
[339913160,1728148250587,-835.38,0.00013698,2]
[339913162,1728148250598,-958.23,0.00013698,2]
[339913164,1728148250608,-500.0,0.00013698,2]
[339913166,1728148250619,-500.0,0.00013698,2]
[339913168,1728148250629,-500.0,0.00013698,2]
[339913170,1728148250639,-715.13,0.00013698,2]
[339913173,1728148250650,-500.0,0.00013698,2]
[339913175,1728148250660,-1044.95,0.00013698,2]
[339913177,1728148250671,-500.0,0.00013698,2]
[339913179,1728148250681,-601.75,0.00013698,2]
[339913181,1728148250693,-500.0,0.00013698,2]
[339913183,1728148250705,-500.0,0.00013698,2]
[339913186,1728148250717,-500.0,0.00013698,2]
[339913188,1728148250727,-500.0,0.00013698,2]
[339913190,1728148250737,-924.1,0.00013698,2]
[339913192,1728148250748,-151.0,0.00013698,2]
[339913194,1728148250758,-400.09355886,0.00013698,2]
[339913196,1728148250767,-1175.74,0.00013698,2]
[339913198,1728148250777,-500.0,0.00013698,2]
[339913200,1728148250786,-500.0,0.00013698,2]
[339913202,1728148250795,-918.27,0.00013698,2]
[339913204,1728148250804,-557.21,0.00013698,2]
[339913206,1728148250813,-500.0,0.00013698,2]
[339913208,1728148250822,-781.81,0.00013698,2]
[339913210,1728148250831,-500.0,0.00013698,2]
[339913212,1728148250840,-500.0,0.00013698,2]
[339913214,1728148250850,-500.0,0.00013698,2]
[339913216,1728148250859,-151.0,0.00013698,2]
[339913218,1728148250867,-575.77240123,0.00013698,2]
[339913220,1728148250878,-601.79,0.00013698,2]
[339913222,1728148250888,-500.0,0.00013698,2]
[339913225,1728148250900,-500.0,0.00013698,2]
[339913227,1728148250910,-212.426363,0.00013698,2]
[339913229,1728148250922,-559.56,0.00013698,2]
[339913231,1728148250932,-1245.01,0.00013698,2]
[339913233,1728148250942,-167.108326,0.00013698,2]
[339913235,1728148250951,-151.0,0.00013698,2]
[339913237,1728148250960,-212.426363,0.00013698,2]
[339913239,1728148250970,-167.108326,0.00013698,2]
[339913241,1728148250981,-500.0,0.00013698,2]
[339913243,1728148250990,-500.0,0.00013698,2]
[339913245,1728148251001,-519.58,0.00013698,2]
[339913248,1728148251011,-500.0,0.00013698,2]
[339913250,1728148251022,-500.0,0.00013698,2]
[339913267,1728148251033,-500.0,0.00013698,2]
[339913270,1728148251196,-500.0,0.00013698,2]
[339913272,1728148251207,-401.994762,0.00013698,2]
[339913274,1728148251218,-500.0,0.00013698,2]
[339913276,1728148251228,-944.14,0.00013698,2]
[339913278,1728148251238,-500.0,0.00013698,2]
[339913279,1728148251248,-500.0,0.00013698,2]
[339913280,1728148251258,-401.994762,0.00013698,2]
[339913281,1728148251268,-2078.75,0.00013698,2]
[339913282,1728148251278,-500.0,0.00013698,2]
[339913283,1728148251288,-500.0,0.00013698,2]
[339913285,1728148251299,-721.93,0.00013698,2]
[339913287,1728148251310,-500.0,0.00013698,2]
[339913289,1728148251320,-500.0,0.00013698,2]
[339913291,1728148251331,-509.6,0.00013698,2]
[339913293,1728148251341,-502.960831,0.00013698,2]
[339913296,1728148251353,-525.64,0.00013698,2]
[339913298,1728148251364,-770.65,0.00013698,2]
[339913300,1728148251373,-500.0,0.00013698,2]
[339913302,1728148251383,-500.0,0.00013698,2]
[339913304,1728148251392,-500.0,0.00013698,2]
[339913306,1728148251402,-642.01,0.00013698,2]
[339913308,1728148251411,-500.0,0.00013698,2]
[339913310,1728148251419,-500.0,0.00013698,2]
[339913312,1728148251429,-263.58041104,0.00013698,2]
[339913314,1728148251438,-500.0,0.00013698,2]
[339913316,1728148251447,-151.0,0.00013698,2]
[339913318,1728148251457,-500.0,0.00013698,2]
[339913320,1728148251467,-500.0,0.00013698,2]
[339913322,1728148251476,-500.0,0.00013698,2]
[339913324,1728148251486,-500.0,0.00013698,2]
[339913326,1728148251496,-579.28,0.00013698,2]
[339913328,1728148251505,-500.0,0.00013698,2]
[339913330,1728148251515,-500.0,0.00013698,2]
[339913332,1728148251524,-500.0,0.00013698,2]
[339913334,1728148251534,-500.0,0.00013698,2]
[339913336,1728148251544,-637.987466,0.00013698,2]
[339913338,1728148251554,-500.0,0.00013698,2]
[339913340,1728148251564,-500.0,0.00013698,2]
[339913342,1728148251573,-1434.82,0.00013698,2]
[339913344,1728148251582,-637.987466,0.00013698,2]
[339913346,1728148251592,-1100.38,0.00013698,2]
[339913348,1728148251601,-500.0,0.00013698,2]
[339913350,1728148251611,-226.25443,0.00013698,2]
[339913352,1728148251621,-653.81,0.00013698,2]
[339913355,1728148251631,-500.0,0.00013698,2]
[339913357,1728148251640,-500.0,0.00013698,2]
[339913359,1728148251649,-226.25443,0.00013698,2]
[339913360,1728148251658,-500.0,0.00013698,2]
[339913363,1728148251668,-500.0,0.00013698,2]
[339913365,1728148251677,-618.35,0.00013698,2]
[339913367,1728148251687,-500.0,0.00013698,2]
[339913369,1728148251698,-500.0,0.00013698,2]
[339913371,1728148251708,-500.0,0.00013698,2]
[339913373,1728148251719,-500.0,0.00013698,2]
[339913375,1728148251736,-500.0,0.00013698,2]
[339913377,1728148251746,-500.0,0.00013698,2]
[339913379,1728148251755,-151.0,0.00013698,2]
[339913381,1728148251764,-534.51,0.00013698,2]
[339913383,1728148251774,-657.64573757,0.00013698,2]
[339913422,1728148252128,-511.66426243,0.00013698,2]
[339913424,1728148252137,-500.0,0.00013698,2]
[339913426,1728148252147,-503.99004907,0.00013698,2]
[339913428,1728148252156,-500.0,0.00013698,2]
[339913430,1728148252167,-289.64568849,0.00013698,2]
[339913432,1728148252180,-17.70892331,0.00013698,2]
[339913434,1728148252189,-500.0,0.00013698,2]
[339913436,1728148252199,-850.22,0.00013698,2]
[339913438,1728148252209,-523.1,0.00013698,2]
[339913440,1728148252221,-500.0,0.00013698,2]
[339913442,1728148252231,-890.51,0.00013698,2]
[339913444,1728148252240,-500.0,0.00013698,2]
[339913446,1728148252249,-2405.72,0.00013698,2]
[339913449,1728148252260,-500.0,0.00013698,2]
[339913451,1728148252271,-500.0,0.00013698,2]
[339913453,1728148252281,-500.0,0.00013698,2]
[339913455,1728148252292,-500.0,0.00013698,2]
[339913457,1728148252302,-500.0,0.00013698,2]
[339913459,1728148252312,-500.0,0.00013698,2]
[339913462,1728148252323,-500.0,0.00013698,2]
[339913464,1728148252335,-167.662458,0.00013698,2]
[339913466,1728148252344,-500.0,0.00013698,2]
[339913468,1728148252353,-500.0,0.00013698,2]
[339913470,1728148252363,-500.0,0.00013698,2]
[339913472,1728148252372,-609.28721509,0.00013698,2]
[339913474,1728148252381,-5592.04116205,0.00013698,2]
[339916302,1728149438776,-771.23,0.00010959,2]
[339916303,1728149438786,-300.0,0.00011184,2]
[339916304,1728149438795,-300.0,0.00011184,2]
[339916305,1728149438805,-24900.0,0.00011185,2]
[339916306,1728149438814,-265.8746628,0.000118,2]
[339916307,1728149438823,-200.65219,0.00011839,2]
[339916308,1728149438832,-200.65219,0.00011871,2]
[339916309,1728149438841,-200.65219,0.00011904,2]
[339916310,1728149438851,-200.65219,0.00011936,2]
[339916311,1728149438860,-200.65219,0.00011969,2]
[339916312,1728149438869,-612.634673,0.00012,2]
[339916313,1728149438878,-200.65219,0.00012001,2]
[339916314,1728149438887,-200.65219,0.00012033,2]
[339916315,1728149438897,-200.65219,0.00012066,2]
[339916316,1728149438907,-200.65219,0.00012098,2]
[339916317,1728149438917,-200.65219,0.00012131,2]
[339916318,1728149438926,-200.65219,0.00012163,2]
[339916319,1728149438936,-200.65219,0.00012196,2]
[339916320,1728149438945,-200.65219,0.00012228,2]
[339916321,1728149438954,-200.65219,0.00012261,2]
[339916322,1728149438964,-1091.59602804,0.00012288,2]
[339916323,1728149438974,-420.0,0.00012288,2]
[339916324,1728149438985,-200.65219,0.00012293,2]
[339916325,1728149438995,-420.0,0.00012303,2]
[339916326,1728149439006,-200.65219,0.00012326,2]
[339916327,1728149439016,-200.65219,0.00012358,2]
[339916328,1728149439025,-200.65219,0.00012391,2]
[339916329,1728149439036,-200.65219,0.00012423,2]
[339916330,1728149439046,-200.65219,0.00012456,2]
[339916331,1728149439055,-1100.0,0.0001278,2]
[339916332,1728149439065,-329.56429523,0.00012951,2]
[339916333,1728149439075,-153.0,0.00013315,2]
[339916334,1728149439085,-153.0,0.00013315,2]
[339916335,1728149439094,-153.0,0.00013315,2]
[339916336,1728149439104,-336.28841115,0.00013488,2]
[339916337,1728149439113,-587.0,0.00013501,2]
[339916338,1728149439123,-3775.22843335,0.00013531,2]
[339916339,1728149439132,-587.0,0.00013533,2]
[339916340,1728149439143,-824.357,0.00013578,2]
[339916341,1728149439153,-1000.0,0.00013588,2]
[339916342,1728149439162,-1259.54131961,0.00013598,2]
[339916343,1728149439171,-150.0,0.000136,2]
[339916344,1728149439180,-209.5952082,0.000136,2]
[339916345,1728149439190,-153.0,0.000136,2]
[339916346,1728149439202,-153.0,0.000136,2]
[339916347,1728149439213,-18715.08260292,0.000136,2]
[339916348,1728149439223,-30000.0,0.000136,2]
[339916349,1728149439233,-500.0,0.00013633,2]
[339916350,1728149439244,-426.77381861,0.00013673,2]
[339916351,1728149439254,-500.0,0.00013673,2]
[339916352,1728149439263,-500.56306532,0.00013673,2]
[339916353,1728149439273,-501.77265161,0.00013673,2]
[339916354,1728149439283,-168.27267451,0.00013673,2]
[339916355,1728149439292,-500.0,0.00013673,2]
[339916356,1728149439303,-167.46,0.00013673,2]
[339916357,1728149439314,-159.4594,0.00013673,2]
[339916358,1728149439325,-500.30851717,0.00013673,2]
[339916359,1728149439334,-10372.1916791,0.00013678,2]
[339916360,1728149439344,-3457.39722638,0.00013678,2]
[339916361,1728149439355,-24201.7805847,0.00013678,2]
[339916362,1728149439367,-31116.5750374,0.00013688,2]
[339916363,1728149439376,-49384.07225292,0.00013698,2]
[339916364,1728149439388,-15738.32613479,0.00013698,2]
[339916365,1728149439398,-151.0,0.00013698,2]
[339916366,1728149439408,-500.0,0.00013698,2]
[339916367,1728149439419,-500.0,0.00013698,2]
[339916368,1728149439429,-500.0,0.00013698,2]
[339916369,1728149439441,-211.6910587,0.00013698,2]
[339916370,1728149439451,-500.0,0.00013698,2]
[339916371,1728149439462,-500.0,0.00013698,2]
[339916372,1728149439473,-500.0,0.00013698,2]
[339916373,1728149439484,-500.0,0.00013698,2]
[339916374,1728149439494,-500.0,0.00013698,2]
[339916375,1728149439505,-500.0,0.00013698,2]
[339916376,1728149439517,-500.0,0.00013698,2]
[339916377,1728149439528,-500.0,0.00013698,2]
[339916378,1728149439539,-565.5,0.00013698,2]
[339916379,1728149439548,-500.0,0.00013698,2]
[339916380,1728149439558,-500.0,0.00013698,2]
[339916381,1728149439568,-500.0,0.00013698,2]
[339916382,1728149439580,-500.0,0.00013698,2]
[339916383,1728149439591,-541.84154872,0.00013698,2]
[339916384,1728149439601,-150.0,0.00013698,2]
[339916385,1728149439611,-500.0,0.00013698,2]
[339916386,1728149439622,-500.0,0.00013698,2]
[339916387,1728149439633,-500.0,0.00013698,2]
[339916388,1728149439645,-500.0,0.00013698,2]
[339916389,1728149439658,-500.0,0.00013698,2]
[339916390,1728149439669,-500.0,0.00013698,2]
[339916391,1728149439680,-500.0,0.00013698,2]
[339916392,1728149439690,-500.0,0.00013698,2]
[339916393,1728149439701,-500.0,0.00013698,2]
[339916394,1728149439711,-500.0,0.00013698,2]
[339916395,1728149439721,-500.0,0.00013698,2]
[339916396,1728149439731,-500.0,0.00013698,2]
[339916397,1728149439740,-500.0,0.00013698,2]
[339916398,1728149439750,-255.63429205,0.00013698,2]
[339916399,1728149439759,-578.32,0.00013698,2]
[339916400,1728149439768,-500.0,0.00013698,2]
[339916401,1728149439778,-500.0,0.00013698,2]
[339916402,1728149439788,-500.0,0.00013698,2]
[339916403,1728149439798,-500.0,0.00013698,2]
[339916404,1728149439807,-500.0,0.00013698,2]
[339916405,1728149439817,-500.0,0.00013698,2]
[339916406,1728149439826,-726.23,0.00013698,2]
[339916407,1728149439836,-500.0,0.00013698,2]
[339916408,1728149439847,-500.0,0.00013698,2]
[339916409,1728149439857,-500.0,0.00013698,2]
[339916410,1728149439867,-500.0,0.00013698,2]
[339916411,1728149439878,-500.0,0.00013698,2]
[339916412,1728149439889,-501.55697227,0.00013698,2]
[339916413,1728149439901,-500.0,0.00013698,2]
[339916414,1728149439911,-500.0,0.00013698,2]
[339916415,1728149439921,-500.0,0.00013698,2]
[339916416,1728149439930,-500.0,0.00013698,2]
[339916417,1728149439941,-500.0,0.00013698,2]
[339916418,1728149439952,-500.0,0.00013698,2]
[339916419,1728149439962,-500.0,0.00013698,2]